fUSD/lending_fUSD_20240623
["ID","MTS","AMOUNT","RATE_DAILY","PERIOD"]
[330204044,1719147037631,-2517.93066352,0.00012426,2]
[330204045,1719147037690,-4389.54872453,0.00012426,2]
[330204046,1719147037776,-2843.87697334,0.00012426,2]
[330204047,1719147037816,-14138.64363861,0.00012426,2]
[330204048,1719147037826,-236.69,0.00012426,2]
[330204049,1719147037835,-3623.4,0.00012436,2]
[330204050,1719147037845,-1852.42,0.00012437,2]
[330204051,1719147037854,-388.56,0.00012449,2]
[330204052,1719147037864,-499.99,0.00012449,2]
[330204053,1719147037875,-4691.07,0.000125,2]
[330204054,1719147037885,-491.9424452,0.00012512,2]
[330204055,1719147037897,-111.2475548,0.00012512,2]
[330204056,1719147037906,-162.91,0.00012619,2]
[330204057,1719147037916,-182.36,0.00012621,2]
[330204058,1719147037926,-677.10989103,0.000127,2]
[330204059,1719147037938,-548.71010897,0.000127,2]
[330204061,1719147037949,-162.91,0.00012838,2]
[330204062,1719147037959,-527.66,0.00012849,2]
[330204063,1719147037969,-150.0,0.00012849,2]
[330204064,1719147037978,-354.29,0.00012849,2]
[330204065,1719147037987,-150.0,0.00012849,2]
[330204066,1719147037997,-423.67,0.00012849,2]
[330204067,1719147038006,-164.6,0.00012849,2]
[330204068,1719147038016,-150.0,0.00012849,2]
[330204069,1719147038026,-527.66,0.00012849,2]
[330204070,1719147038036,-423.67,0.00012849,2]
[330204071,1719147038046,-150.0,0.00012849,2]
[330204072,1719147038055,-354.29,0.00012849,2]
[330204073,1719147038065,-150.0,0.00012849,2]
[330204074,1719147038074,-164.6,0.00012849,2]
[330204075,1719147038083,-1000.0,0.00012854,2]
[330204076,1719147038092,-150.99,0.00012926,2]
[330204077,1719147038102,-318.23,0.00013041,2]
[330204078,1719147038112,-162.91,0.00013058,2]
[330204079,1719147038123,-150.0,0.00013078,2]
[330204080,1719147038132,-527.66,0.00013078,2]
[330204081,1719147038142,-423.67,0.00013078,2]
[330204082,1719147038155,-150.0,0.00013078,2]
[330204083,1719147038165,-164.6,0.00013078,2]
[330204084,1719147038176,-354.29,0.00013078,2]
[330204085,1719147038186,-150.0,0.00013078,2]
[330204086,1719147038195,-150.0,0.00013078,2]
[330204088,1719147038205,-150.0,0.00013178,2]
[330204089,1719147038214,-150.0,0.00013178,2]
[330204090,1719147038224,-164.6,0.00013178,2]
[330204091,1719147038245,-527.66,0.00013178,2]
[330204092,1719147038257,-150.0,0.00013178,2]
[330204093,1719147038267,-423.67,0.00013178,2]
[330204094,1719147038277,-150.0,0.00013178,2]
[330204095,1719147038287,-354.29,0.00013178,2]
[330204096,1719147038296,-150.99,0.00013205,2]
[330204097,1719147038307,-1626.01043838,0.00013205,2]
[330204098,1719147038335,-1987.37256162,0.00013205,2]
[330204099,1719147038346,-162.91,0.00013277,2]
[330204100,1719147038356,-420.0,0.0001356,2]
[330204101,1719147038365,-212.0169,0.00013605,2]
[330204102,1719147038377,-421.10929091,0.00013669,2]
[330204103,1719147038386,-218.59,0.00013671,2]
[330204104,1719147038397,-354.29,0.00013671,2]
[330204105,1719147038406,-354.29,0.00013671,2]
[330204106,1719147038417,-354.29,0.00013671,2]
[330204107,1719147038427,-352.94,0.00013671,2]
[330204108,1719147038437,-150.0,0.00013678,2]
[330204109,1719147038447,-166.16,0.00013678,2]
[330204110,1719147038457,-150.0,0.00013678,2]
[330204111,1719147038467,-163.63,0.00013678,2]
[330204112,1719147038477,-150.0,0.00013678,2]
[330204113,1719147038487,-199.73,0.00013699,2]
[330204114,1719147038497,-1232.15,0.00013699,2]
[330204115,1719147038507,-2751.0,0.00013699,2]
[330204116,1719147038518,-200.0,0.00013699,2]
[330204117,1719147038528,-3968.98,0.00013699,2]
[330204118,1719147038539,-500.0,0.00013699,2]
[330204120,1719147038548,-1000.0,0.000137,5]
[330204121,1719147038558,-1655.0,0.00013705,2]
[330204122,1719147038567,-1272.0,0.00013705,2]
[330204123,1719147038577,-1830.0,0.00013705,2]
[330204124,1719147038587,-359.0,0.00013705,2]
[330204125,1719147038598,-812.0,0.00013705,2]
[330204126,1719147038611,-166.439,0.00013705,2]
[330204127,1719147038620,-617.0,0.00013705,2]
[330204128,1719147038630,-453.569,0.00013705,2]
[330204129,1719147038640,-442.0,0.00013705,2]
[330204130,1719147038650,-150.0,0.00013705,2]
[330204131,1719147038659,-2412.0,0.00013705,2]
[330204132,1719147038670,-1303.0,0.00013705,2]
[330204133,1719147038684,-3200.0,0.00013705,2]
[330204134,1719147038694,-547.0,0.00013705,2]
[330204135,1719147038704,-1984.0,0.00013705,2]
[330204136,1719147038715,-5799.0,0.00013705,2]
[330204137,1719147038725,-1197.0,0.00013705,2]
[330204138,1719147038735,-291.0,0.00013705,2]
[330204139,1719147038745,-1661.0,0.00013705,2]
[330204140,1719147038754,-5167.0,0.00013705,2]
[330204141,1719147038764,-8624.94733118,0.00013705,2]
[330204142,1719147038777,-699.04955138,0.00013705,2]
[330204145,1719147039792,-1728.35089666,0.00013705,2]
[330204146,1719147039804,-701.1727594,0.00013705,2]
[330204147,1719147039900,-26405.47946138,0.00013705,2]
[330204148,1719147039910,-152.0,0.00013705,2]
[330204149,1719147039921,-1082.122,0.00013705,2]
[330204151,1719147039931,-1251.2596,0.00013769,2]
[330204152,1719147039941,-15107.25687714,0.00013779,2]
[330204153,1719147039952,-745.83403878,0.00013779,2]
[330204154,1719147039965,-8833.25871474,0.00013779,2]
[330204155,1719147039975,-4941.6503325,0.0001378,2]
[330204156,1719147040077,-436.0661831,0.0001378,2]
[330204175,1719147042640,-3096.70689459,0.0001378,2]
[330204176,1719147042683,-1279.90704887,0.0001378,2]
[330204177,1719147042719,-3843.32882048,0.0001378,2]
[330204202,1719147045716,-518.90570714,0.000129,2]
[330204204,1719147045727,-7.95429286,0.000129,2]
[330204206,1719147045736,-150.0,0.000129,2]
[330204208,1719147045746,-423.02,0.000129,2]
[330204210,1719147045754,-164.6,0.000129,2]
[330204212,1719147045764,-350.72728788,0.000129,2]
[330204213,1719147045778,-3.56271212,0.000129,2]
[330204214,1719147045787,-150.0,0.00013705,2]
[330204215,1719147045798,-556.76728788,0.0001378,2]
[330204216,1719147045809,-2161.6400943,0.0001378,2]
[330204217,1719147045827,-533.73353828,0.0001378,2]
[330204218,1719147045836,-1.01782972,0.0001378,2]
[330204219,1719147045848,-755.47013296,0.0001378,2]
[330204220,1719147045870,-380.43528124,0.0001378,2]
[330204221,1719147045882,-505.14,0.0001378,2]
[330204222,1719147045892,-292.064,0.0001378,2]
[330204223,1719147045921,-275.81125608,0.0001378,2]
[330204224,1719147045931,-222.59785257,0.0001378,2]
[330204226,1719147047404,-777.40214743,0.0001378,2]
[330204227,1719147047414,-159.34066713,0.0001379,2]
[330204228,1719147047424,-3980.78193787,0.00013799,2]
[330204229,1719147047434,-2000.0,0.000138,5]
[330204230,1719147047444,-1362.54920001,0.00013828,2]
[330204231,1719147047454,-500.0,0.00013888,2]
[330204232,1719147047464,-200.0,0.00013888,2]
[330204233,1719147047474,-2500.0,0.00013899,2]
[330204234,1719147047484,-537.28157027,0.000139,2]
[330204235,1719147047493,-171.25042835,0.000139,2]
[330204236,1719147047503,-156.0208,0.000139,2]
[330204237,1719147047513,-3000.0,0.000139,5]
[330204238,1719147047522,-2503.75847491,0.000139,2]
[330204239,1719147047532,-5881.30272378,0.000139,2]
[330204240,1719147047542,-3022.81708204,0.00013988,2]
[330204241,1719147047552,-517.9671284,0.00013988,2]
[330204242,1719147047561,-209.45341844,0.00013999,2]
[330204243,1719147047571,-5910.04510539,0.00013999,2]
[330204244,1719147047581,-1009.32521493,0.00013999,5]
[330204245,1719147047590,-1082.61554,0.00013999,5]
[330204246,1719147047601,-1132.12148575,0.00013999,5]
[330204247,1719147047614,-555.0,0.00014,2]
[330204248,1719147047624,-103651.61023162,0.00014,2]
[330204249,1719147047638,-8648.62313302,0.00014,2]
[330204250,1719147047653,-390.2895,0.00014,2]
[330204253,1719147071410,155.0,0.00014,10]
[330204256,1719147132470,151.0,0.00020469,120]
[330204257,1719147159809,267.58040282,0.00014,10]
[330204258,1719147192431,200.0,0.00025294,120]
[330204259,1719147192868,200.0,0.00025894,120]
[330204261,1719147195476,1000.0,0.00025894,120]
[330204266,1719147372441,151.0,0.00020469,120]
[330204268,1719147431632,301.04979149,0.00025999,120]
[330204274,1719147618298,151.0,0.00020469,120]
[330204283,1719147975663,151.0,0.00020469,120]
[330204297,1719148232186,-270.26587227,0.00011042,2]
[330204298,1719148232198,-272.60412773,0.00011042,2]
[330204299,1719148232208,-1443.8,0.00012991,2]
[330204300,1719148232218,-1283.59587227,0.00013013,2]
[330204301,1719148232274,-912.97412773,0.00013013,2]
[330204302,1719148232284,-1640.89,0.00013057,3]
[330204303,1719148232294,-250.0,0.00013057,2]
[330204304,1719148232304,-600.0,0.00013249,2]
[330204305,1719148232314,-124.65862071,0.00013306,2]
[330204306,1719148232326,-271.05628702,0.00013306,2]
[330204307,1719148232342,-147.15509227,0.00013306,2]
[330204308,1719148232351,-250.66566978,0.00013345,2]
[330204309,1719148232363,-749.33433022,0.00013345,2]
[330204310,1719148232372,-115.98184107,0.000134,2]
[330204311,1719148232392,-592.19815893,0.000134,2]
[330204312,1719148232402,-1164.65,0.00013441,2]
[330204313,1719148232411,-836.04,0.00013441,2]
[330204314,1719148232420,-162.74,0.00013699,2]
[330204315,1719148232430,-499.99,0.00013699,2]
[330204316,1719148232439,-616.07,0.00013699,2]
[330204317,1719148232449,-159.78,0.00013699,2]
[330204318,1719148232458,-1779.65953087,0.00013699,2]
[330204319,1719148232469,-279.04229747,0.00013699,2]
[330204320,1719148232494,-1329.28402773,0.00013699,2]
[330204321,1719148232506,-1030.00414393,0.00013699,2]
[330204322,1719148232515,-1506.21,0.00013699,2]
[330204323,1719148232525,-653.13585607,0.00013699,2]
[330204324,1719148232560,-851.70842797,0.00013699,2]
[330204325,1719148237653,-297.32648978,0.00013423,2]
[330204326,1719148237663,-52.83268595,0.00013699,2]
[330204327,1719148237675,-876.16594478,0.00013699,2]
[330204328,1719148237835,-1235.47644,0.00013699,2]
[330204329,1719148237848,-12890.6,0.00013699,2]
[330204330,1719148237860,-544.57763909,0.00013699,2]
[330204331,1719148237920,-275.96458678,0.00013699,2]
[330204332,1719148237932,-255.06953445,0.00013699,2]
[330204333,1719148237943,-835.49395484,0.00013699,2]
[330204334,1719148237958,-328.92787868,0.00013699,2]
[330204335,1719148237970,-5603.6215,0.00013699,2]
[330204337,1719148237988,-373.90555139,0.00013699,2]
[330204338,1719148237998,-753.39274115,0.00013699,2]
[330204339,1719148238008,-700.0,0.000137,5]
[330204340,1719148238017,-202.01806079,0.00013704,2]
[330204341,1719148238027,-150.0,0.00013705,2]
[330204343,1719148238037,-150.104,0.00013705,2]
[330204345,1719148238047,-150.099,0.00013705,2]
[330204346,1719148238055,-150.0,0.00013705,2]
[330204348,1719148238066,-226.73,0.00013705,2]
[330204350,1719148238075,-238.851,0.00013705,2]
[330204352,1719148238084,-258.997,0.00013705,2]
[330204353,1719148238094,-184.859,0.00013705,2]
[330204354,1719148238103,-150.0,0.00013705,2]
[330204355,1719148238113,-151.07,0.00013705,2]
[330204357,1719148238122,-206.254,0.00013705,2]
[330204359,1719148238132,-200.329,0.00013705,2]
[330204361,1719148238141,-151.838,0.00013705,2]
[330204363,1719148238151,-838.58269342,0.00013705,2]
[330204372,1719148239867,-155.29367869,0.00013704,2]
[330204373,1719148239877,-433.41730658,0.00013705,2]
[330204374,1719148239887,-1830.0,0.00013705,2]
[330204375,1719148239897,-359.0,0.00013705,2]
[330204376,1719148239907,-1655.0,0.00013705,2]
[330204377,1719148239917,-442.0,0.00013705,2]
[330204378,1719148239926,-448.0,0.00013705,2]
[330204379,1719148239936,-617.0,0.00013705,2]
[330204380,1719148239946,-812.0,0.00013705,2]
[330204381,1719148239956,-166.0,0.00013705,2]
[330204382,1719148239966,-1303.0,0.00013705,2]
[330204383,1719148239976,-2408.0,0.00013705,2]
[330204384,1719148239992,-618.60314737,0.00013705,2]
[330204385,1719148240004,-698.50638546,0.00013705,2]
[330204386,1719148240015,-856.13926249,0.00013705,2]
[330204387,1719148240027,-1022.75120468,0.00013705,2]
[330204388,1719148240036,-1984.0,0.00013705,2]
[330204389,1719148240046,-547.0,0.00013705,2]
[330204390,1719148240056,-1196.0,0.00013705,2]
[330204391,1719148240066,-291.0,0.00013705,2]
[330204392,1719148240076,-1661.0,0.00013705,2]
[330204393,1719148240085,-1312.48,0.00013705,2]
[330204394,1719148240094,-1196.52879532,0.00013705,2]
[330204395,1719148240132,-1766.36284933,0.00013705,2]
[330204396,1719148240154,-2204.10835535,0.00013705,2]
[330204397,1719148240165,-758.17955338,0.00013705,2]
[330204398,1719148240188,-820.68169376,0.00013705,2]
[330204399,1719148240223,-36580.13875286,0.00013705,2]
[330204400,1719148240233,-1123.20843927,0.0001372,2]
[330204401,1719148240242,-1134.48593535,0.0001372,2]
[330204402,1719148240252,-345.18093938,0.00013729,2]
[330204403,1719148240262,-155.61414478,0.00013779,2]
[330204404,1719148240271,-1400.0,0.000138,5]
[330204405,1719148240281,-600.0,0.00013801,2]
[330204406,1719148240290,-1000.0,0.00013888,2]
[330204407,1719148240300,-500.0,0.00013888,2]
[330204408,1719148240309,-200.0,0.00013888,2]
[330204409,1719148240319,-172.28575094,0.000139,2]
[330204410,1719148240329,-171.25042833,0.000139,2]
[330204411,1719148240338,-4349.30848698,0.000139,2]
[330204412,1719148240348,-2100.0,0.000139,5]
[330204413,1719148240358,-209.45341844,0.00013999,2]
[330204414,1719148240367,-4147.298246,0.00013999,2]
[330204415,1719148240377,-14374.29057192,0.00013999,2]
[330204416,1719148240387,-500.0,0.00014,2]
[330204417,1719148240396,-130819.91132716,0.00014,2]
[330204418,1719148240408,-861.2,0.00014,2]
[330204419,1719148240420,-977.60744467,0.00014,2]
[330204420,1719148240435,-1278.99496668,0.00014,2]
[330204424,1719148242881,-202.01806079,0.00013699,2]
[330204425,1719148242891,-22022.07131268,0.00014,2]
[330204426,1719148243030,-687.85090234,0.00014,2]
[330204427,1719148243042,-312.14909766,0.00014,2]
[330204428,1719148243075,-37599.33840646,0.00014,2]
[330204429,1719148243127,-993.12736041,0.00014,2]
[330204430,1719148243139,-485.85127002,0.00014,2]
[330204431,1719148243177,-24818.33254271,0.00014,2]
[330204432,1719148243226,-327.12129972,0.00014,2]
[330204467,1719148245878,-589.79769736,0.00013705,2]
[330204468,1719148245889,-478.20230264,0.00013705,2]
[330204469,1719148245898,-271.55125102,0.00013999,2]
[330204470,1719148245908,-315.42686208,0.00013999,2]
[330204471,1719148245920,-626.86484445,0.00013999,2]
[330204472,1719148245932,-442.12267575,0.00013999,2]
[330204473,1719148245945,-1380.45111505,0.00013999,2]
[330204474,1719148245953,-81467.78999147,0.00014,2]
[330204475,1719148245969,-424.18779121,0.00014,2]
[330204476,1719148246116,-1341.004324,0.00014,2]
[330204478,1719148396108,1000.0,0.00025282,120]
[330204483,1719148459672,151.0,0.00020469,120]
[330204485,1719148561422,300.0,0.00010941,2]
[330204486,1719148571204,-300.0,0.00010942,2]
[330204491,1719148792744,151.0,0.00020469,120]
[330204500,1719149231002,151.0,0.00020469,120]
[330204504,1719149431954,-264.2801,0.00010742,2]
[330204505,1719149431964,-197.46491076,0.00010842,2]
[330204506,1719149431973,-519.92612783,0.00012587,2]
[330204507,1719149431982,-170.84,0.00012835,2]
[330204508,1719149431991,-1000.0,0.00013555,2]
[330204509,1719149432308,-132.77714765,0.00013699,2]
[330204510,1719149432333,-175.25285235,0.00013699,2]
[330204511,1719149432343,-3022.81708204,0.00013699,2]
[330204512,1719149432353,-500.0,0.000137,5]
[330204513,1719149432363,-448.0,0.00013705,2]
[330204514,1719149432374,-812.0,0.00013705,2]
[330204515,1719149432387,-166.479,0.00013705,2]
[330204516,1719149432397,-166.0,0.00013705,2]
[330204517,1719149432407,-153.05711427,0.00013705,2]
[330204550,1719149432755,-9.83388573,0.00013705,2]
[330204551,1719149432765,-1068.0,0.00013705,2]
[330204552,1719149432774,-1268.0,0.00013705,2]
[330204553,1719149432784,-291.0,0.00013705,2]
[330204554,1719149432793,-254.582,0.00013705,2]
[330204555,1719149432802,-1772.18681706,0.00013705,2]
[330204556,1719149432815,-3394.81318294,0.00013705,2]
[330204557,1719149432824,-526.48227954,0.00013705,2]
[330204558,1719149432852,-1293.51772046,0.00013705,2]
[330204559,1719149432863,-359.0,0.00013705,2]
[330204560,1719149432872,-1000.0,0.000138,5]
[330204561,1719149432882,-12469.00144837,0.0001386,2]
[330204562,1719149432893,-3000.0,0.0001386,2]
[330204563,1719149432904,-1000.0,0.00013888,2]
[330204564,1719149432914,-500.0,0.00013888,2]
[330204565,1719149432925,-3914.3776383,0.00013889,2]
[330204566,1719149432935,-322.64063138,0.00013889,2]
[330204567,1719149432945,-671.24,0.0001389,3]
[330204568,1719149432955,-517.9671284,0.00013899,2]
[330204569,1719149432966,-5793.36807774,0.000139,2]
[330204570,1719149432975,-172.28575093,0.000139,2]
[330204571,1719149432985,-171.25042833,0.000139,2]
[330204572,1719149432994,-223830.11505759,0.000139,2]
[330204573,1719149433006,-7999.44526518,0.000139,2]
[330204574,1719149433018,-11260.22225739,0.000139,2]
[330204575,1719149433028,-840.52331929,0.000139,2]
[330204576,1719149433050,-530.14499983,0.000139,2]
[330204577,1719149433076,-478.1956183,0.000139,2]
[330204599,1719149438077,-319.8,0.000139,2]
[330204600,1719149438154,-4741.55348242,0.000139,2]
[330204601,1719149438164,-1500.0,0.000139,5]
[330204602,1719149438174,-233.85367932,0.000139,2]
[330204603,1719149438184,-517.9671284,0.00013922,2]
[330204604,1719149438194,-1330.04256018,0.0001397,2]
[330204605,1719149438203,-1000.0,0.0001397,2]
[330204606,1719149438213,-2127.0,0.00013981,2]
[330204607,1719149438224,-21136.4411979,0.00013989,2]
[330204608,1719149438234,-8324.9533792,0.00013989,2]
[330204609,1719149438244,-1143.22647867,0.00013989,2]
[330204610,1719149438259,-21236.8513744,0.00013989,2]
[330204611,1719149438271,-7563.25408996,0.00013989,2]
[330204612,1719149438290,-5189.33497957,0.00013989,2]
[330204613,1719149438300,-6448.88777873,0.00013989,2]
[330204614,1719149438314,-6670.00918374,0.00013989,2]
[330204615,1719149438326,-19000.08189429,0.00013989,2]
[330204616,1719149438337,-1888.29169314,0.00013989,2]
[330204617,1719149438347,-3057.24207058,0.00013989,2]
[330204618,1719149438368,-10978.45424228,0.00013989,2]
[330204619,1719149438380,-6954.3,0.00013989,2]
[330204620,1719149438401,-367.18970664,0.00013989,2]
[330204621,1719149438412,-1115.92565592,0.00013989,2]
[330204622,1719149438425,-393.19965,0.00013989,2]
[330204629,1719149439982,-634.33885046,0.00013989,2]
[330204630,1719149439993,-274.7021428,0.00013989,2]
[330204631,1719149440005,-921.77101413,0.00013989,2]
[330204632,1719149440072,-1176.69046004,0.00013705,2]
[330204633,1719149440084,-381.32653996,0.00013705,2]
[330204634,1719149440095,-3753.55893926,0.00013989,2]
[330204635,1719149440108,-6081.14586414,0.00013989,2]
[330204636,1719149440154,-3291.39065368,0.00013989,2]
[330204637,1719149440166,-9970.45,0.00013989,2]
[330204638,1719149440178,-1000.0,0.00013989,2]
[330204639,1719149440227,-8788.35089367,0.00013989,2]
[330204640,1719149440304,-27112.56318054,0.00013989,2]
[330204641,1719149440316,-2764.86549734,0.00013999,2]
[330204642,1719149440327,-323691.8577673,0.00014,2]
[330204643,1719149440339,-891.51412651,0.00014,2]
[330204644,1719149440511,-77915.54252046,0.00014,2]
[330204688,1719149443395,-256.2739747,0.00013705,2]
[330204689,1719149443418,-19567.7020253,0.00013705,2]
[330204690,1719149443430,-1382.43274867,0.00013999,2]
[330204691,1719149443440,-72179.06896024,0.00014,2]
[330204692,1719149443449,-445306.96967644,0.00014,2]
[330204703,1719149446011,-3263.40959113,0.00014,2]
[330204704,1719149446023,-33585.8652,0.00014,2]
[330204705,1719149446161,-532.17,0.00014,2]
[330204706,1719149446179,-44403.94839026,0.00014,2]
[330204707,1719149446190,-3223.48163858,0.00014,2]
[330204710,1719149617907,151.0,0.00020469,120]
[330204711,1719149782646,-300.0,0.00010641,2]
[330204712,1719149782672,-15601.5186,0.00010642,2]
[330204718,1719149858390,150.0,0.00010642,2]
[330204719,1719149858412,150.0,0.00010642,2]
[330204720,1719149858433,150.0,0.00010642,2]
[330204721,1719149858455,150.0,0.00010642,2]
[330204722,1719149858477,150.0,0.00010642,2]
[330204723,1719149858499,150.0,0.00010642,2]
[330204724,1719149858521,150.0,0.00010642,2]
[330204725,1719149858546,150.0,0.00010642,2]
[330204726,1719149858567,150.0,0.00010642,2]
[330204727,1719149858590,150.0,0.00010642,2]
[330204728,1719149858614,150.0,0.00010642,2]
[330204729,1719149858635,150.0,0.00010642,2]
[330204730,1719149858656,150.0,0.00010642,2]
[330204731,1719149858677,150.0,0.00010642,2]
[330204732,1719149858698,150.0,0.00010642,2]
[330204733,1719149858722,8420.21223903,0.00010642,2]
[330204734,1719149909756,151.0,0.00019613,120]
[330204735,1719149929191,183.83705592,0.00010642,2]
[330204739,1719150001257,300.0,0.00010642,2]
[330204740,1719150208418,151.0,0.00019718,120]
[330204743,1719150442719,151.0,0.00019804,120]
[330204761,1719150632157,-544.4915,0.00012289,2]
[330204764,1719150632170,-4781.02268136,0.00012289,2]
[330204775,1719150632271,-8393.48053149,0.00012289,2]
[330204777,1719150632284,-807.53143426,0.00012289,2]
[330204784,1719150632367,-1312.15,0.00012289,2]
[330204796,1719150638554,-9406.60729015,0.00012289,2]
[330204797,1719150638564,-300.0,0.00012298,2]
[330204798,1719150638577,-156.44495655,0.00012361,2]
[330204799,1719150638587,-523.58022278,0.00012466,2]
[330204800,1719150638597,-155.0,0.00012466,2]
[330204801,1719150638607,-576.70861476,0.00012467,2]
[330204802,1719150638619,-367.82760013,0.00012469,2]
[330204803,1719150638629,-434.12597244,0.00012469,2]
[330204804,1719150638638,-67.18948174,0.000125,2]
[330204805,1719150638650,-221.53093165,0.000125,2]
[330204806,1719150638660,-138.75593755,0.00012888,2]
[330204807,1719150638689,-822.42406245,0.00012888,2]
[330204808,1719150638699,-420.0,0.00013496,2]
[330204809,1719150638710,-400.0,0.000135,4]
[330204810,1719150638720,-299.99,0.000135,2]
[330204811,1719150638729,-1000.0,0.00013506,2]
[330204812,1719150638739,-900.0,0.000136,4]
[330204813,1719150638748,-159.78,0.00013699,2]
[330204814,1719150638761,-1400.0,0.000137,5]
[330204815,1719150638772,-4169.18056355,0.000138,2]
[330204816,1719150638784,-323.48416786,0.000138,2]
[330204817,1719150638796,-780.0,0.000138,2]
[330204818,1719150638824,-1014.55400002,0.000138,2]
[330204820,1719150638851,-808.09196857,0.000138,2]
[330204822,1719150638860,-1098.1856013,0.000138,5]
[330204831,1719150640401,-154.01,0.00013699,2]
[330204832,1719150640411,-801.8143987,0.000138,5]
[330204833,1719150640420,-1823.57410291,0.000138,2]
[330204834,1719150640432,-1325.13427342,0.000138,2]
[330204835,1719150640444,-1152.06630246,0.000138,2]
[330204836,1719150640453,-2223.80046599,0.00013809,2]
[330204837,1719150640463,-151.69908,0.0001386,2]
[330204838,1719150640482,-1000.0,0.00013888,2]
[330204839,1719150640493,-500.0,0.00013888,2]
[330204840,1719150640503,-335.54820648,0.00013889,2]
[330204841,1719150640513,-171.12979609,0.00013889,2]
[330204842,1719150640523,-16987.2144,0.00013889,2]
[330204843,1719150640533,-1766.457,0.00013899,2]
[330204844,1719150640543,-418.39,0.000139,2]
[330204845,1719150640554,-76283.04815755,0.000139,2]
[330204846,1719150640568,-1954.10039998,0.000139,2]
[330204847,1719150640581,-3315.2,0.000139,2]
[330204848,1719150640697,-7999.941096,0.000139,2]
[330204852,1719150643292,-1706.48451016,0.000139,2]
[330204853,1719150643440,-1488.39866693,0.000139,2]
[330204854,1719150643452,-10970.52681283,0.000139,2]
[330204855,1719150643485,-700.63054471,0.000139,2]
[330204856,1719150643498,-98814.94600995,0.000139,2]
[330204857,1719150643511,-27704.4171582,0.000139,2]
[330204858,1719150643580,-19062.30664369,0.000139,2]
[330204859,1719150643590,-2400.0,0.000139,5]
[330204860,1719150643600,-174.98775606,0.000139,2]
[330204861,1719150643612,-171.12979609,0.000139,2]
[330204862,1719150643622,-3653.81412104,0.00013908,2]
[330204863,1719150643632,-5310.58740454,0.00013909,2]
[330204864,1719150643642,-182.04870981,0.00013909,2]
[330204865,1719150643651,-448.0,0.00013926,2]
[330204866,1719150643661,-166.0,0.00013926,2]
[330204867,1719150643671,-291.0,0.00013926,2]
[330204868,1719150643680,-5167.0,0.00013926,2]
[330204869,1719150643690,-1068.0,0.00013926,2]
[330204870,1719150643699,-150.0,0.00013926,2]
[330204871,1719150643712,-1000.0,0.0001397,2]
[330204872,1719150643723,-677.89503561,0.0001397,2]
[330204873,1719150643732,-26598.9421271,0.00013989,2]
[330204874,1719150643742,-22394.9448084,0.00013989,2]
[330204875,1719150643792,-3351.9597249,0.00013989,2]
[330204876,1719150643803,-7425.93212386,0.00013989,2]
[330204877,1719150643817,-723.27767348,0.00013989,2]
[330204878,1719150643830,-55973.05888906,0.00013989,2]
[330204879,1719150643842,-15956.2832055,0.00013989,2]
[330204880,1719150643852,-6352.123818,0.00013989,2]
[330204881,1719150643862,-193.16948895,0.0001399,2]
[330204882,1719150643872,-291.93341729,0.00013998,2]
[330204883,1719150643882,-1382.43274867,0.00013999,2]
[330204884,1719150643892,-98673.53293877,0.00013999,2]
[330204885,1719150643902,-150.0,0.00013999,2]
[330204886,1719150643912,-249536.22931717,0.00014,2]
[330204887,1719150643922,-90359.70756194,0.00014,2]
[330204888,1719150643936,-487.55,0.00014,2]
[330204889,1719150643948,-701.78153052,0.00014,2]
[330204890,1719150643960,-1779.675,0.00014,2]
[330204891,1719150643971,-11856.98439761,0.00014,2]
[330204893,1719150643998,-10217.56647705,0.00014,2]
[330204894,1719150644009,-2559.49580657,0.00014,2]